[Event "XII Cracow ICC-A 2024"]
[Site "Krakow"]
[Date "2024.06.24"]
[Round "4.12"]
[White "Bogdanov, Egor"]
[Black "Aakash Sharadchandra, Dalvi"]
[Result "1-0"]
[ECO "B90"]
[WhiteElo "2433"]
[BlackElo "2291"]
[Annotator "TA"]
[PlyCount "73"]
[EventDate "2024.06.20"]
[EventType "swiss"]
[EventCountry "POL"]
[SourceTitle "playchess.com"]
[Source "ChessBase"]
[SourceQuality "1"]
[TimeControl "40/5400+30:1800+30"]

{[%evp 17,73,27,22,17,24,20,35,19,18,10,8,10,0,0,0,0,0,0,0,0,-8,0,0,0,45,33,56,21,87,14,101,68,66,83,225,218,249,260,224,239,240,239,288,283,370,356,368,279,432,431,427,419,421,377,392,396,389,393]} 1. e4 {[%emt 0:00:12]} c5 {[%emt 0:00:07]} 2. Nf3 {[%emt 0:00:35]} d6 {[%emt 0:00:05]} 3. d4 {[%emt 0:00:32]} cxd4 {[%emt 0:00:05]} 4. Nxd4 {[%emt 0:00:02]} Nf6 {[%emt 0:00:07]} 5. Nc3 {[%emt 0:00:40]} a6 {[%emt 0:00:05]} 6. Be3 {[%emt 0:01:10]} e5 {[%emt 0:00:06]} 7. Nb3 {[%emt 0:00:08]} Be6 {[%emt 0:00:11]} 8. f3 {[%emt 0:01:56]} h5 {[%emt 0:00:09]} 9. Qd2 {[%emt 0:00:42]} Nbd7 {[%emt 0:00:06]} 10. Nd5 {[%emt 0:00:58]} Bxd5 {[%emt 0:00:07]} 11. exd5 {[%emt 0:00:02]} g6 {[%emt 0:00:08]} 12. O-O-O {[%emt 0:00:55] White is slightly better.} Nb6 {[%emt 0:00:05]} 13. Qa5 {[%emt 0:00:40]} Bh6 {[%emt 0:00:07]} 14. Bxh6 {[%emt 0:00:12]} Rxh6 {[%emt 0:00:04]} 15. Qd2 {[%emt 0:00:13]} Rh8 {[%emt 0:00:06][%cal Bh6h8,Bh8e8,Be8e5][%mdl 32]} 16. f4 {[%emt 0:00:15]} exf4 {[%emt 0:00:05]} ({But not} 16... Nfxd5 17. g3 exf4 18. Qd4 $16) ({Stronger than} 16... Nbxd5 17. fxe5 dxe5 18. Bc4 $16) 17. Qxf4 {[%emt 0:01:14]} Kf8 {[%emt 0:00:06][%cal Of8g7]} 18. Bd3 {[%emt 0:01:48] Hoping for Rhf1.} Kg7 {[%emt 0:07:58]} 19. Nd4 {[%emt 0:01:12]} Re8 {[%emt 0:28:04]} 20. Rhf1 {[%emt 0:47:22]} Re5 {[%emt 0:19:36] Repels Qg5} (20... Nbxd5 $5 21. Nf5+ gxf5 22. Qg5+ Kf8 $16) 21. c4 {[%emt 0:01:20]} Qe7 {[%emt 0:08:36]} 22. h3 {[%emt 0:13:43]} Re8 {[%emt 0:08:22] [#]} (22... Nbxd5 $11 23. cxd5 Nxd5) 23. Kb1 {[%emt 0:02:08]} (23. Nf3 $1 $16) 23... Nbd7 {[%emt 0:05:21]} (23... Nbxd5 $11 {remains equal.} 24. cxd5 Nxd5) 24. g4 {[%emt 0:01:52] White is much more active.} Nc5 {[%emt 0:02:21]} 25. Bc2 {[%emt 0:04:12]} Nfe4 {[%emt 0:05:03] [#] This move loses the game for Black.} (25... a5 $16) 26. Nf3 $1 $18 {[%emt 0:02:39]} hxg4 {[%emt 0:01:44]} 27. Nxe5 {[%emt 0:02:52]} dxe5 {[%emt 0:00:07]} 28. Qxg4 {[%emt 0:00:16]} Nf6 {[%emt 0:01:52]} 29. Qe2 {[%emt 0:01:30]} e4 {[%emt 0:00:56]} 30. Qe3 {[%emt 0:00:43] d6 would now be deadly.} Ncd7 {[%emt 0:02:21]} 31. Rf4 {[%emt 0:01:52]} Qe5 {[%emt 0:00:56]} 32. Rg1 {[%emt 0:06:39]} b5 {[%emt 0:04:07]} (32... Nb6 $142) 33. Rh4 {[%emt 0:01:11]} Rh8 {[%emt 0:00:20] Inhibits Qh6+.} 34. Rxh8 {[%emt 0:00:17]} Kxh8 {[%emt 0:00:02]} 35. cxb5 {[%emt 0:00:33]} axb5 {[%emt 0:00:12]} 36. Re1 {[%emt 0:02:48]} Qxd5 {[%emt 0:00:49]} 37. Bxe4 {[%emt 0:00:14] Weighted Error Value: White=0.13 (very precise) /Black=0.34.  Mistake:       	White=1     	Black=4      Inaccurate:     	White=2     	Black=2      OK:         	White=10    	Black=9      Best:        	White=1     	---        Strong:       	White=1     	---} 1-0

[Event "XII Cracow ICC-A 2024"]
[Site "Krakow"]
[Date "2024.06.24"]
[Round "4.13"]
[White "Hollan, Martin"]
[Black "Gierulski, Kamil"]
[Result "1-0"]
[ECO "B90"]
[WhiteElo "2373"]
[BlackElo "2242"]
[Annotator "RC"]
[PlyCount "129"]
[EventDate "2024.06.20"]
[EventType "swiss"]
[EventCountry "POL"]
[SourceTitle "playchess.com"]
[Source "ChessBase"]
[SourceQuality "1"]
[TimeControl "40/5400+30:1800+30"]

1. e4 {[%emt 0:00:06]} c5 {[%emt 0:00:02]} 2. Nf3 {[%emt 0:00:14]} d6 {[%emt 0:00:02]} 3. d4 {[%emt 0:00:13]} cxd4 {[%emt 0:00:02]} 4. Nxd4 {[%emt 0:00:09]} Nf6 {[%emt 0:00:03]} 5. Nc3 {[%emt 0:00:13]} a6 {[%emt 0:00:02]} 6. a3 {[%emt 0:00:12]} e5 {[%emt 0:00:03]} 7. Nf5 {[%emt 0:00:19]} d5 {[%emt 0:00:13]} 8. Bg5 {[%emt 0:00:14]} d4 {[%emt 0:00:07]} 9. Bxf6 {[%emt 0:00:09]} gxf6 {[%emt 0:00:08]} 10. Nb1 {[%emt 0:00:11]} Bxf5 {[%emt 0:00:40]} 11. exf5 {[%emt 0:00:08]} Qd5 {[%emt 0:00:29]} 12. Qh5 {[%emt 0:00:12]} Nd7 {[%emt 0:27:27]} 13. Nd2 {[%emt 0:00:29]} O-O-O {[%emt 0:01:04]} 14. f3 {[%emt 0:31:46]} Nb6 {[%emt 0:17:53]} 15. Bd3 {[%emt 0:01:45]} Qa5 {[%emt 0:01:25]} 16. Ke2 {[%emt 0:09:38]} Nd5 {[%emt 0:01:08]} 17. g3 {[%emt 0:02:22]} Qc7 {[%emt 0:00:04]} 18. Ne4 {[%emt 0:00:51]} Kb8 {[%emt 0:00:19]} 19. Rab1 {[%emt 0:02:14]} Rd7 {[%emt 0:02:38]} 20. Rhc1 {[%emt 0:09:09]} h6 {[%emt 0:01:32]} 21. Kf2 {[%emt 0:09:38]} Ka7 {[%emt 0:00:51]} 22. Kg1 {[%emt 0:00:48]} Bg7 {[%emt 0:00:16]} 23. Kh1 {[%emt 0:01:26]} Rc8 {[%emt 0:00:30]} 24. b4 {[%emt 0:08:44]} Nc3 {[%emt 0:03:58]} 25. Nxc3 {[%emt 0:01:32]} Qxc3 {[%emt 0:00:07]} 26. b5 {[%emt 0:00:40]} a5 {[%emt 0:04:09]} 27. b6+ {[%emt 0:00:08]} Kb8 {[%emt 0:00:08]} 28. a4 {[%emt 0:03:36]} Bf8 {[%emt 0:00:36]} 29. Rd1 {[%emt 0:00:56]} Bb4 {[%emt 0:02:31]} 30. Qxh6 {[%emt 0:00:50]} Qc6 {[%emt 0:00:04]} 31. Be4 {[%emt 0:01:20]} Qxb6 {[%emt 0:00:03]} 32. f4 {[%emt 0:08:03]} d3 {[%emt 0:03:42]} 33. cxd3 {[%emt 0:01:34]} Qe3 {[%emt 0:01:01]} 34. Qxf6 {[%emt 0:01:47]} exf4 {[%emt 0:01:18]} 35. Qe5+ {[%emt 0:01:24]} Ka7 {[%emt 0:00:33]} 36. Qxf4 {[%emt 0:00:38]} Qxf4 {[%emt 0:02:24]} 37. gxf4 {[%emt 0:00:07]} Rc2 {[%emt 0:01:37]} 38. Rdc1 {[%emt 0:01:24]} Rf2 {[%emt 0:01:56]} 39. Rf1 {[%emt 0:01:15]} Ra2 {[%emt 0:01:14]} 40. Ra1 {[%emt 0:00:31]} Rb2 {[%emt 0:01:29]} 41. Rg1 {[%emt 0:05:18]} Bc3 {[%emt 0:04:48]} 42. Rac1 {[%emt 0:00:46]} Bd2 {[%emt 0:00:30]} 43. Rb1 {[%emt 0:00:18]} Rxb1 {[%emt 0:01:00]} 44. Rxb1 {[%emt 0:00:06]} Bxf4 {[%emt 0:00:19]} 45. Rb5 {[%emt 0:03:20]} Ka6 {[%emt 0:03:39]} 46. f6 {[%emt 0:10:52]} Be3 {[%emt 0:18:13]} 47. h4 {[%emt 0:05:54]} Bd4 {[%emt 0:01:38]} 48. h5 {[%emt 0:00:19]} Bxf6 {[%emt 0:00:53]} 49. h6 {[%emt 0:00:06]} Rd4 {[%emt 0:14:25]} 50. Bxb7+ {[%emt 0:06:27]} Ka7 {[%emt 0:00:00]} 51. Be4 {[%emt 0:00:33]} Rxa4 {[%emt 0:00:03]} 52. h7 {[%emt 0:00:59]} Ka6 {[%emt 0:03:12]} 53. Rh5 {[%emt 0:02:41]} Bh8 {[%emt 0:02:17]} 54. Rg5 {[%emt 0:01:11]} Rd4 {[%emt 0:03:12]} 55. Rg8 {[%emt 0:00:22]} Bf6 {[%emt 0:00:03]} 56. h8=Q Bxh8 {[%emt 0:00:04]} 57. Rxh8 {[%emt 0:00:47]} a4 {[%emt 0:01:17]} 58. Kg2 {[%emt 0:00:20]} Kb5 {[%emt 0:09:02]} 59. Kf3 {[%emt 0:00:19]} Kb4 {[%emt 0:00:29]} 60. Ke3 {[%emt 0:00:16]} Rd6 {[%emt 0:00:07]} 61. Kd2 {[%emt 0:00:27]} Ra6 {[%emt 0:00:46]} 62. Rb8+ {[%emt 0:00:24]} Kc5 {[%emt 0:00:19]} 63. Kc3 {[%emt 0:01:28]} a3 {[%emt 0:00:03]} 64. d4+ {[%emt 0:00:13]} Kd6 {[%emt 0:00:03]} 65. Ra8 {[%emt 0:00:07]} 1-0

[Event "XII Cracow ICC-A 2024"]
[Site "Krakow"]
[Date "2024.06.24"]
[Round "4.14"]
[White "Marszalek, Maciej"]
[Black "Apoorv Kamble"]
[Result "1-0"]
[ECO "A21"]
[WhiteElo "2255"]
[BlackElo "2369"]
[Annotator "RC"]
[PlyCount "155"]
[EventDate "2024.06.20"]
[EventType "swiss"]
[EventCountry "POL"]
[SourceTitle "playchess.com"]
[Source "ChessBase"]
[SourceQuality "1"]
[TimeControl "40/5400+30:1800+30"]

1. c4 {[%emt 0:00:06]} e5 {[%emt 0:00:39]} 2. Nc3 {[%emt 0:00:18]} Bb4 {[%emt 0:00:34]} 3. g3 {[%emt 0:00:18]} Bxc3 {[%emt 0:00:18]} 4. bxc3 {[%emt 0:00:06]} d6 {[%emt 0:00:44]} 5. Bg2 {[%emt 0:01:20]} Ne7 {[%emt 0:01:20]} 6. e4 {[%emt 0:01:27]} Nbc6 {[%emt 0:01:13]} 7. Ne2 {[%emt 0:00:22]} O-O {[%emt 0:00:38]} 8. d3 {[%emt 0:00:53]} f5 {[%emt 0:03:58]} 9. f3 {[%emt 0:13:29]} fxe4 {[%emt 0:02:51]} 10. fxe4 {[%emt 0:00:06]} Bg4 {[%emt 0:02:34]} 11. h3 {[%emt 0:00:35]} Bf3 {[%emt 0:02:36]} 12. O-O {[%emt 0:02:08]} Bxg2 {[%emt 0:03:14]} 13. Rxf8+ {[%emt 0:01:01]} Qxf8 {[%emt 0:00:06]} 14. Kxg2 {[%emt 0:00:05]} Qf7 {[%emt 0:04:01]} 15. Ng1 {[%emt 0:01:22]} a6 {[%emt 0:21:17]} 16. a4 {[%emt 0:03:03]} Rf8 {[%emt 0:05:44]} 17. Be3 {[%emt 0:01:15]} Na5 {[%emt 0:10:42]} 18. Rb1 {[%emt 0:15:49]} Qg6 {[%emt 0:15:21]} 19. Qc2 {[%emt 0:04:36]} Qe8 {[%emt 0:01:37]} 20. Nf3 {[%emt 0:08:27]} b6 {[%emt 0:03:04]} 21. Nd2 {[%emt 0:02:45]} Qd7 {[%emt 0:00:39]} 22. Rf1 {[%emt 0:06:48]} Rxf1 {[%emt 0:02:53]} 23. Nxf1 {[%emt 0:00:03]} Ng6 {[%emt 0:00:01]} 24. Bf2 {[%emt 0:02:44]} Nf8 {[%emt 0:01:58]} 25. Ne3 {[%emt 0:00:57]} Ne6 {[%emt 0:00:01]} 26. Nd5 {[%emt 0:00:13]} Ng5 {[%emt 0:00:41]} 27. g4 {[%emt 0:00:28]} Ne6 {[%emt 0:00:38]} 28. Be3 {[%emt 0:00:43]} Nb7 {[%emt 0:00:22]} 29. d4 {[%emt 0:02:46]} Na5 {[%emt 0:01:30]} 30. Qa2 {[%emt 0:01:10]} Qf7 {[%emt 0:01:32]} 31. Qe2 {[%emt 0:00:43]} Qe8 {[%emt 0:05:17]} 32. Qf1 {[%emt 0:07:13]} Qf7 {[%emt 0:04:41]} 33. Qd3 {[%emt 0:01:33]} h6 {[%emt 0:01:05]} 34. dxe5 {[%emt 0:02:12]} dxe5 35. c5 {[%emt 0:00:05]} Qe8 {[%emt 0:02:31]} 36. cxb6 {[%emt 0:00:58]} cxb6 {[%emt 0:00:02]} 37. Nxb6 {[%emt 0:01:24]} Nb7 {[%emt 0:01:59]} 38. Qd5 {[%emt 0:00:43]} Nbd8 {[%emt 0:00:30]} 39. Qxe5 {[%emt 0:02:15]} Qc6 {[%emt 0:00:01]} 40. c4 {[%emt 0:04:41]} Nf7 {[%emt 0:00:32]} 41. Qd5 {[%emt 0:31:13]} Nf4+ {[%emt 0:30:51]} 42. Bxf4 {[%emt 0:00:03]} Qxb6 {[%emt 0:00:02]} 43. c5 {[%emt 0:00:39]} Qb2+ {[%emt 0:00:25]} 44. Bd2 {[%emt 0:03:36]} Kh8 {[%emt 0:00:00]} 45. Qd3 {[%emt 0:00:00]} Qa2 {[%emt 0:00:00]} 46. Qd5 {[%emt 0:00:00]} Qc2 {[%emt 0:00:00]} 47. Qxf7 {[%emt 0:00:00]} Qxd2+ {[%emt 0:00:00]} 48. Qf2 {[%emt 0:00:00]} Qc3 {[%emt 0:00:00]} 49. Qf8+ {[%emt 0:00:00]} Kh7 {[%emt 0:00:00]} 50. Qf5+ {[%emt 0:00:00]} Kh8 {[%emt 0:00:00]} 51. Qc8+ {[%emt 0:00:00]} Kh7 {[%emt 0:00:00]} 52. Qxa6 {[%emt 0:00:00]} Qxc5 {[%emt 0:00:00]} 53. Qd3 {[%emt 0:00:00]} Kh8 {[%emt 0:00:00]} 54. h4 {[%emt 0:00:12]} Qc8 {[%emt 0:00:00]} 55. Qe2 {[%emt 0:00:26]} Qc5 {[%emt 0:00:00]} 56. h5 {[%emt 0:02:05]} Qc3 {[%emt 0:01:33]} 57. Qf2 {[%emt 0:01:17]} Qb4 {[%emt 0:01:40]} 58. Qc2 {[%emt 0:00:19]} Qa3 {[%emt 0:02:36]} 59. a5 {[%emt 0:04:34]} Qd6 {[%emt 0:01:24]} 60. Qe2 {[%emt 0:00:19]} Qd4 {[%emt 0:01:15]} 61. a6 {[%emt 0:00:11]} Kh7 {[%emt 0:00:54]} 62. e5 {[%emt 0:01:40]} Qd5+ {[%emt 0:00:24]} 63. Kh2 {[%emt 0:00:12]} Qa5 {[%emt 0:00:55]} 64. Kh3 {[%emt 0:02:40]} Kg8 {[%emt 0:00:24]} 65. Kg3 {[%emt 0:01:34]} Kf8 {[%emt 0:00:25]} 66. a7 {[%emt 0:02:08]} Ke7 {[%emt 0:00:24]} 67. Qe3 {[%emt 0:00:01]} Ke8 {[%emt 0:00:48]} 68. Kh3 {[%emt 0:00:44]} Qa1 {[%emt 0:00:23]} 69. e6 {[%emt 0:01:10]} Qh1+ {[%emt 0:00:40]} 70. Kg3 {[%emt 0:00:01]} Qa1 {[%emt 0:00:01]} 71. Qf2 {[%emt 0:01:37]} Ke7 {[%emt 0:01:00]} 72. Qc5+ {[%emt 0:01:06]} Kxe6 {[%emt 0:00:24]} 73. Qc6+ {[%emt 0:00:03]} Ke5 {[%emt 0:00:04]} 74. a8=Q {[%emt 0:00:25]} Qe1+ {[%emt 0:00:04]} 75. Kg2 {[%emt 0:00:34]} Qe2+ {[%emt 0:00:22]} 76. Kh3 {[%emt 0:00:09]} Qf1+ {[%emt 0:00:12]} 77. Qg2 {[%emt 0:00:06]} Qd3+ {[%emt 0:00:03]} 78. Qaf3 {[%emt 0:00:06]} 1-0

[Event "XII Cracow ICC-A 2024"]
[Site "Krakow"]
[Date "2024.06.24"]
[Round "4.15"]
[White "Nguyen, Piotr"]
[Black "Jake Shanty"]
[Result "1-0"]
[ECO "E07"]
[WhiteElo "2426"]
[BlackElo "2217"]
[Annotator "RC"]
[PlyCount "113"]
[EventDate "2024.06.20"]
[EventType "swiss"]
[EventCountry "POL"]
[SourceTitle "playchess.com"]
[Source "ChessBase"]
[SourceQuality "1"]
[TimeControl "40/5400+30:1800+30"]

1. d4 Nf6 2. c4 c6 3. Nc3 d5 4. Nf3 e6 5. g3 Be7 6. Bg2 O-O 7. O-O Nbd7 8. Qd3 b6 9. e4 Ba6 10. b3 Rc8 11. a4 dxe4 12. Nxe4 c5 13. Rd1 Bb7 14. Nxf6+ Bxf6 15. Ng5 Bxg5 16. Bxb7 Rc7 17. Bg2 cxd4 18. Bxg5 Qxg5 19. Qxd4 Qe7 20. a5 Nc5 21. axb6 axb6 22. Qe3 h6 23. h4 Nd7 24. Qf4 Nf6 25. Rd6 Rb8 26. Ra6 e5 27. Qd2 Nd7 28. Bh3 Nc5 29. Raxb6 Rcb7 30. Rxb7 Qxb7 31. Rd8+ Rxd8 32. Qxd8+ Kh7 33. h5 Qe4 34. Qc8 Qe1+ 35. Kg2 Ne4 36. Qf5+ Kg8 37. Qc8+ Kh7 38. Bf5+ g6 39. hxg6+ Kg7 40. Bxe4 Qxe4+ 41. Kh2 Kxg6 42. b4 f5 43. b5 Qd4 44. Qe8+ Kf6 45. Qc6+ Kg5 46. Kg2 f4 47. Qd5 Qb2 48. Qg8+ Kf5 49. Qh7+ Kg5 50. Qg7+ Kf5 51. gxf4 Kxf4 52. Qxh6+ Kf5 53. b6 Qd4 54. Qh3+ Kf6 55. b7 Qe4+ 56. Qf3+ Qxf3+ 57. Kxf3 1-0

[Event "XII Cracow ICC-A 2024"]
[Site "Krakow"]
[Date "2024.06.24"]
[Round "4.16"]
[White "Pyrig, Roman"]
[Black "Chatalbashev, Boris"]
[Result "0-1"]
[ECO "B06"]
[WhiteElo "2260"]
[BlackElo "2483"]
[Annotator "TA"]
[PlyCount "78"]
[EventDate "2024.06.20"]
[EventType "swiss"]
[EventCountry "POL"]
[SourceTitle "playchess.com"]
[Source "ChessBase"]
[SourceQuality "1"]
[TimeControl "40/5400+30:1800+30"]

{[%evp 9,78,47,50,45,52,31,86,46,84,58,103,65,102,45,41,34,58,62,37,12,0,0,12,0,0,0,-5,-162,-156,-149,-162,-139,-155,-152,-156,-183,-177,-225,-235,-230,-241,-243,-174,-204,-189,-314,-315,-327,-366,-420,-399,-537,-409,-422,-442,-412,-420,-488,-475,-710,-703,-738,-695,-727,-718,-29983,-29984,-29983,-29984,-29984,-5289]} 1. e4 {[%emt 0:04:57]} g6 {[%emt 0:00:07]} 2. d4 {[%emt 0:00:43]} Bg7 {[%emt 0:00:05]} 3. Nf3 {[%emt 0:00:08]} d6 {[%emt 0:00:44]} 4. Be3 {[%emt 0:00:11]} b6 {[%emt 0:03:25]} 5. Qd2 {[%emt 0:01:57]} Bb7 {[%emt 0:00:07]} 6. Nc3 {[%emt 0:00:08]} Nd7 {[%emt 0:00:21]} 7. h4 {[%emt 0:04:50][%cal Bh2h4,Bh4h5][%mdl 32]} h6 {[%emt 0:05:09]} ({Black should play} 7... Ngf6 $14) 8. O-O-O {[%emt 0:01:34] White is better.} e6 {[%emt 0:01:16]} 9. Kb1 {[%emt 0:04:57]} Ne7 {[%emt 0:02:14][%cal Bg8e7,Be7f5,Bf5e3][%mdl 32]} 10. Nh2 {[%emt 0:08:36]} d5 {[%emt 0:07:00]} 11. e5 {[%emt 0:06:53]} ({Better is} 11. exd5 $1 $16 Nxd5 12. Nxd5 Bxd5 13. h5) 11... Nf5 $14 {[%emt 0:01:48][%cal Oa7a6] [#]} 12. h5 $1 {[%emt 0:00:09]} g5 {[%emt 0:09:48]} 13. Bd3 {[%emt 0:01:25] Black must now prevent Bxf5.} Nxe3 {[%emt 0:10:27]} 14. fxe3 {[%emt 0:01:35]} O-O $1 {[%emt 0:07:01]} 15. Ng4 {[%emt 0:01:16]} c5 {[%emt 0:01:31]} 16. Bb5 {[%emt 0:01:53]} f5 {[%emt 0:00:51]} 17. exf6 {[%emt 0:05:34]} Nxf6 {[%emt 0:00:06]} 18. Ne5 {[%emt 0:00:35] This move loses the game for White.} (18. Be2 $11 {and White is okay.}) 18... c4 $1 $19 {[%emt 0:00:48]} 19. Bc6 {[%emt 0:00:13]} Bxc6 {[%emt 0:01:27]} 20. Nxc6 {[%emt 0:00:04]} Qe8 {[%emt 0:00:10][%csl LRc6,LRh5]} 21. Ne5 {[%emt 0:00:29] [#]} b5 $1 {[%emt 0:01:28][%cal Ob5b4]} 22. Rdf1 {[%emt 0:01:56]} b4 $36 {[%emt 0:00:48][%mdl 2048] Black is on the roll.} (22... Nxh5 23. Rxf8+ Bxf8 24. Ng4 $11) 23. Ne2 {[%emt 0:00:04] [#]} (23. Nd1 $142) 23... Ne4 $1 {[%emt 0:05:17]} (23... Nxh5 24. Rxf8+ Bxf8 25. Ng4 $11) 24. Rxf8+ {[%emt 0:02:16]} ({Don't play} 24. Qxb4 Rxf1+ 25. Rxf1 c3 $19 (25... Qxh5 26. Re1 $15)) 24... Qxf8 {[%emt 0:00:07]} 25. Qe1 {[%emt 0:00:02] [#]} c3 $1 {[%emt 0:09:09][%mdl 512] And now ...Bxe5 would win.} 26. Nd3 {[%emt 0:00:06]} (26. Nd7 Qc8) 26... a5 {[%emt 0:01:19]} 27. Ng3 {[%emt 0:02:44]} (27. Nc5 $142) 27... Nd2+ {[%emt 0:03:03]} 28. Kc1 {[%emt 0:00:03]} a4 {[%emt 0:01:39]} 29. Kd1 {[%emt 0:02:24]} Ne4 {[%emt 0:02:31][%cal Ob4b3] aiming for ...b3!} 30. Ke2 {[%emt 0:06:58]} cxb2 {[%emt 0:07:42]} 31. Nxe4 {[%emt 0:00:03]} dxe4 {[%emt 0:00:11]} 32. Nxb2 {[%emt 0:00:02]} Rc8 {[%emt 0:04:51]} 33. Qd2 {[%emt 0:18:38]} Qe8 {[%emt 0:00:37] Strongly threatening ...a3.} 34. Rf1 {[%emt 0:00:02]} (34. Kf2 $142 a3 35. Nd1) 34... a3 {[%emt 0:00:47]} 35. Nd1 {[%emt 0:00:08]} Qa4 {[%emt 0:00:24]} 36. c3 {[%emt 0:00:41]} bxc3 {[%emt 0:00:32]} 37. Qc1 {[%emt 0:00:01]} Qc4+ {[%emt 0:02:55] Black mates.} 38. Ke1 {[%emt 0:00:02]} c2 {[%emt 0:00:33]} 39. Nf2 {[%emt 0:00:03]} Rb8 {[%emt 0:01:00] Weighted Error Value: White=0.54/Black=0.14 (very precise) .  Mistake:       	White=5     	Black=1      Inaccurate:     	White=4     	Black=3      OK:         	White=8     	Black=12     Best:        	White=2     	Black=2      Strong:       	---       	Black=4} (39... Bf8 $142 40. Nxe4 Bb4+ (40... Qxa2 $2 41. Nf6+ Kh8 42. Kf2 $19) 41. Kf2 Rf8+ (41... Qxa2 $2 42. Nf6+ Kg7 43. Kg3 $19) 42. Kg1 Qxf1+ (42... Qxa2 $2 43. Kh2 $19) (42... Rxf1+ {leads to mate.} 43. Qxf1 c1=Q 44. Qxc1 Qxc1+ 45. Kf2 Qe1+ 46. Kf3 Qf1+ 47. Kg3 Qf5 48. Kh2 Qxe4 49. g3 Qxe3 50. Kg2 g4 51. Kh1 Qxg3 52. d5 Qh3+ 53. Kg1 Bc5#) 43. Qxf1 Rxf1+ 44. Kxf1 c1=Q+ (44... c1=R+ $2 45. Ke2 $19) 45. Kf2 Qe1+ 46. Kf3 Qf1+ (46... Qd1+ {gets mated.} 47. Kg3 Qg1 48. Kf3 Qf1+ 49. Kg3 Qf5 50. Kh2 Qxe4 51. g3 Qc2+ 52. Kh1 Qxa2 53. e4 Qe2 54. Kg1 a2 55. Kh1 a1=Q#) 47. Kg3 Qf5 48. Kh2 Qxe4 49. g3 Qc2+ (49... Qxe3 50. Kg2 g4 51. Kh1 Qxg3 52. d5 Qh3+ 53. Kg1 Bc5#) 50. Kh1 Qxa2 51. e4 Qe2 52. Kg1 a2 53. Kh1 a1=Q#) 0-1

[Event "XII Cracow ICC-A 2024"]
[Site "Krakow"]
[Date "2024.06.24"]
[Round "4.17"]
[White "Aarav Dengla"]
[Black "Damen, Jip"]
[Result "1/2-1/2"]
[ECO "C07"]
[WhiteElo "2395"]
[BlackElo "2259"]
[Annotator "RC"]
[PlyCount "107"]
[EventDate "2024.06.20"]
[EventType "swiss"]
[EventCountry "POL"]
[SourceTitle "playchess.com"]
[Source "ChessBase"]
[SourceQuality "1"]
[TimeControl "40/5400+30:1800+30"]

1. e4 {[%emt 0:00:02]} e6 {[%emt 0:02:01]} 2. d4 {[%emt 0:00:10]} d5 {[%emt 0:00:05]} 3. Nd2 {[%emt 0:00:06]} c5 {[%emt 0:00:20]} 4. Ngf3 {[%emt 0:00:05]} cxd4 {[%emt 0:00:20]} 5. Nxd4 {[%emt 0:00:08]} Nc6 {[%emt 0:00:07]} 6. Bb5 {[%emt 0:00:05]} Bd7 {[%emt 0:00:05]} 7. Nxc6 {[%emt 0:00:06]} bxc6 {[%emt 0:00:08]} 8. Bd3 {[%emt 0:00:04]} Qc7 {[%emt 0:00:11]} 9. Qe2 {[%emt 0:00:11]} Ne7 {[%emt 0:00:11]} 10. Nf3 {[%emt 0:15:58]} Ng6 {[%emt 0:00:06]} 11. e5 {[%emt 0:12:25]} c5 {[%emt 0:00:05]} 12. c3 {[%emt 0:04:42]} Be7 {[%emt 0:00:22]} 13. O-O {[%emt 0:09:40]} O-O {[%emt 0:00:13]} 14. Re1 {[%emt 0:02:00]} Rab8 {[%emt 0:01:38]} 15. h4 {[%emt 0:18:11]} f5 {[%emt 0:06:21]} 16. exf6 {[%emt 0:06:29]} gxf6 {[%emt 0:03:53]} 17. Qc2 {[%emt 0:06:44]} f5 {[%emt 0:00:52]} 18. h5 {[%emt 0:02:35]} Nf4 {[%emt 0:01:00]} 19. Ne5 {[%emt 0:07:49]} Nxh5 {[%emt 0:01:44]} 20. Bh6 {[%emt 0:01:03]} Ng7 {[%emt 0:05:35]} 21. c4 {[%emt 0:02:25]} Bf6 {[%emt 0:01:34]} 22. Bf4 {[%emt 0:01:36]} Nh5 {[%emt 0:08:05]} 23. Bh2 {[%emt 0:00:43]} Qb7 {[%emt 0:14:53]} 24. Nxd7 {[%emt 0:03:59]} Qxd7 {[%emt 0:00:05]} 25. Bxb8 {[%emt 0:00:31]} Rxb8 {[%emt 0:00:03]} 26. cxd5 {[%emt 0:00:10]} Nf4 {[%emt 0:06:21]} 27. Bf1 {[%emt 0:01:13]} Qg7 {[%emt 0:11:10]} 28. dxe6 {[%emt 0:02:51]} Nh3+ {[%emt 0:00:14]} 29. Kh1 {[%emt 0:02:01]} Nxf2+ {[%emt 0:00:47]} 30. Qxf2 {[%emt 0:00:03]} Qh6+ {[%emt 0:00:06]} 31. Kg1 {[%emt 0:00:00]} Bd4 {[%emt 0:00:11]} 32. Qxd4 {[%emt 0:01:30]} cxd4 {[%emt 0:00:05]} 33. e7 {[%emt 0:00:01]} Kf7 {[%emt 0:00:35]} 34. Bb5 {[%emt 0:00:16]} d3 {[%emt 0:03:41]} 35. e8=Q+ {[%emt 0:00:15]} Rxe8 {[%emt 0:00:03]} 36. Bxe8+ {[%emt 0:00:03]} Kf8 {[%emt 0:00:12]} 37. Rad1 {[%emt 0:00:24]} Qb6+ {[%emt 0:10:49]} 38. Kf1 {[%emt 0:00:29]} Qh6 {[%emt 0:00:36]} 39. Kg1 {[%emt 0:00:34]} Qb6+ {[%emt 0:00:04]} 40. Kf1 {[%emt 0:00:02]} Qh6 {[%emt 0:00:14]} 41. Rxd3 {[%emt 0:23:44]} Qa6 {[%emt 0:00:45]} 42. Ree3 {[%emt 0:00:01]} f4 {[%emt 0:00:13]} 43. Rh3 {[%emt 0:00:01]} Kxe8 {[%emt 0:00:20]} 44. a3 {[%emt 0:00:02]} h6 {[%emt 0:04:03]} 45. b4 {[%emt 0:00:23]} Kf7 {[%emt 0:05:27]} 46. Kg1 {[%emt 0:00:02]} Kg6 {[%emt 0:01:16]} 47. Rd5 {[%emt 0:00:27]} Qb6+ {[%emt 0:02:21]} 48. Kh2 {[%emt 0:02:13]} Qc7 {[%emt 0:05:39]} 49. Rc5 {[%emt 0:00:11]} Qd6 {[%emt 0:00:45]} 50. Rhc3 {[%emt 0:00:04]} f3+ {[%emt 0:00:53]} 51. Kh3 {[%emt 0:00:12]} Qe6+ {[%emt 0:06:20]} 52. Kh2 {[%emt 0:00:47]} Qd6+ {[%emt 0:00:52]} 53. Kh3 {[%emt 0:00:01]} Qe6+ {[%emt 0:00:07]} 54. Kh2 {[%emt 0:04:34]} 1/2-1/2